Cogmind - Beta 10.2 @@@ ROGUE MODE // 2021.05.12 @ 15:20:24 Player: Trantor Result: Destroyed by G-47 Trooper with Particle Gun Performance ------------- Evolutions (1) 500 Regions Visited (2) 400 Robots Destroyed (55) 275 Value Destroyed (1683) 1683 Prototype IDs (8) 160 Alien Tech Used (0) 0 Bonus (33) 33 TOTAL SCORE: 3051 Bonus ------- High Alert Combat Kills 33 Cogmind --------- Core Integrity 0/400 Matter 271/300 Energy 261/265 System Corruption 0% Temperature Cool (20) Movement Rolling (100) Ox1 Location -9/Materials Parts ------- > --- POWER (1) -------- Improved Ion Engine > --- PROPULSION (3) --- Armored Wheel Armored Wheel Armored Wheel > --- UTILITY (3) ------ Large Storage Unit Large Storage Unit Light Armor Plating > --- WEAPON (2) ------- Advanced Beam Cannon Heavy Assault Rifle > --- INVENTORY (16) --- Ion Engine Improved Ion Engine Armored Wheel Armored Wheel Armored Wheel High-capacity Matter Pod (200) Light Armor Plating Advanced Beam Cannon Advanced Beam Cannon Advanced Beam Cannon Heavy Assault Rifle Shotgun Missile Launcher Missile Launcher Missile Launcher Missile Launcher Peak State ------------ > --- POWER ------------ Improved Ion Engine > --- PROPULSION ------- Armored Wheel Armored Wheel Armored Wheel > --- UTILITY ---------- Large Storage Unit Large Storage Unit Hardened Light Armor Plating > --- WEAPON ----------- Advanced Beam Cannon Heavy Assault Rifle > --- INVENTORY -------- Ion Engine Ion Engine Armored Wheel Armored Wheel Armored Wheel High-capacity Matter Pod Light Armor Plating Heavy EM Pulse Gun Improved Medium Laser Advanced Beam Cannon Light Assault Rifle Light Cannon Missile Launcher Missile Launcher Missile Launcher Missile Launcher [Rating: 20] Favorites ----------- Power Light Ion Engine Engine Light Ion Engine Propulsion Armored Wheel Treads Light Treads Leg Aluminum Leg Wheel Armored Wheel Utility Large Storage Unit Storage Large Storage Unit Protection Light Armor Plating Weapon Light Cannon Energy Gun Heavy EM Pulse Gun Energy Cannon Advanced Beam Cannon Ballistic Gun Heavy Assault Rifle Ballistic Cannon Light Cannon Launcher Grenade Launcher Build | -11 -10 -9 ------- Run | Scr Mat Mat Slots Evolved 2 | . . 2 Power . | . . . Propulsion 1 | . . 1 Utility 1 | . . 1 Weapon . | . . . Parts Attached 47 | . 19 28 Power 7 | . 2 5 Engine 7 | . 2 5 Core . | . . . Reactor . | . . . Propulsion 11 | . 6 5 Treads 4 | . 4 . Leg . | . . . Wheel 7 | . 2 5 Hover . | . . . Flight . | . . . Utility 9 | . 2 7 Device . | . . . Storage 4 | . 2 2 Processor . | . . . Hackware . | . . . Protection 5 | . . 5 Artifact . | . . . Weapon 20 | . 9 11 Energy Gun 3 | . 2 1 Energy Cannon 5 | . 2 3 Ballistic Gun 4 | . . 4 Ballistic Cannon 7 | . 4 3 Launcher 1 | . 1 . Special Weapon . | . . . Impact Weapon . | . . . Slashing Weapon . | . . . Piercing Weapon . | . . . Special Melee Weapon . | . . . Unidentified Prototypes 1 | . . 1 Parts Lost 7 | . 1 6 Power 1 | . . 1 Propulsion 1 | . . 1 Utility 2 | . . 2 Weapon 3 | . 1 2 Highest Loss Streak 3 | . 1 3 Average Slot Usage (%) 94 | . 92 96 Engine 11 | . 14 9 Treads 12 | . 25 . Wheel 17 | . . 33 Storage 23 | . 25 22 Protection 4 | . . 9 Energy Gun 3 | . 1 5 Energy Cannon 4 | . 2 6 Ballistic Gun 7 | . 6 7 Ballistic Cannon 7 | . 12 2 Naked Turns . | . . . Heaviest Build 51 | 11 43 51 Greatest Support 40 | 20 40 36 Greatest Overweight (x) 14 | . 14 1 Average Overweight (x) . | . . . Largest Inventory Capacity 16 | . 16 16 Average Capacity 15 | . 13 16 Most Carried 16 | . 16 16 Average Carried 13 | . 10 15 Final Capacity 16 | 6 16 16 Final Carried 16 | 6 16 16 Class Distribution -------------------- 100% | Mutant Dominant Class ---------------- Mutant | -10/Materials Mutant | -9/Materials Resources | -11 -10 -9 ----------- Run | Scr Mat Mat Matter Collected 1460 | 194 343 923 Remotely . | . . . Salvage Created 2207 | . 544 1663 Parts 116 | . 31 85 Haulers Intercepted 6 | . 2 4 Recyclers Shooed . | . . . Parts Field Recycled . | . . . Retrieved Matter . | . . . Parts Self-Destructed . | . . . Prevented . | . . . Kills | -11 -10 -9 ------- Run | Scr Mat Mat Combat Hostiles Destroyed 40 | . 11 29 Guns 19 | . 4 15 Cannons 21 | . 7 14 Classes Destroyed 9 | . 4 5 Worker 2 | . 1 1 Hauler 6 | . 2 4 Recycler 2 | . . 2 Operator 1 | . . 1 Watcher 4 | . 1 3 Swarmer 3 | . . 3 Grunt 27 | . 11 16 Brawler 1 | . . 1 Sentry 9 | . . 9 Best Kill Streak 8 | . 5 8 Combat Bots Only 8 | . 3 8 Max Kills in Single Turn 1 | . 1 1 Gunslinging . | . . . Exploded . | . . . Melee . | . . . Uniques/NPCs Destroyed . | . . . Combat | -11 -10 -9 -------- Run | Scr Mat Mat Damage Taken 2301 | . 354 1947 Core 451 | . 50 401 Absorbed by Shields . | . . . Core Remaining (%) 90 | 100 80 . Volleys Fired 169 | . 43 126 Largest 2 | . 2 2 Hottest 103 | . 80 103 Shots Fired 311 | . 79 232 Gun 131 | . 15 116 Cannon 174 | . 58 116 Launcher 6 | . 6 . Special . | . . . Kinetic 174 | . 59 115 Thermal 82 | . 14 68 Explosive 6 | . 6 . Electromagnetic 49 | . . 49 Robot Hit Streak 17 | . 8 17 Robot Miss Streak 6 | . 6 4 Penetration Max . | . . . Secondary Targets 2 | . . 2 Max Gunslinging Chain 1 | . . 1 Shots Hit Robots 186 | . 40 146 Core Hits 74 | . 19 55 Critical Hits 7 | . . 7 Critical Kills 2 | . . 2 Critical Parts Destroyed 5 | . . 5 Melee Attacks . | . . . Impact . | . . . Slashing . | . . . Piercing . | . . . Sneak Attacks . | . . . Combat Hostiles . | . . . Follow-up Attacks . | . . . Damage Inflicted 3514 | . 702 2812 Guns 1199 | . 155 1044 Cannons 2128 | . 547 1581 Explosions 187 | . . 187 Melee . | . . . Ramming . | . . . Kinetic 1560 | . 562 998 Thermal 1261 | . 140 1121 Explosive 187 | . . 187 Electromagnetic 506 | . . 506 Impact . | . . . Slashing . | . . . Piercing . | . . . Highest Corruption . | . . . Average Corruption . | . . . Corruption Purged . | . . . Overload Shots . | . . . Overflow Damage 45 | . . 45 Projectiles . | . . . Explosions 45 | . . 45 Melee . | . . . Knockbacks 9 | . 2 7 Impact . | . . . Kinetic 9 | . 2 7 Secondary . | . . . Self-Inflicted Damage . | . . . Shots . | . . . Rammed . | . . . Targets Rammed . | . . . Kicked . | . . . Crushed . | . . . Highest Temperature 358 | . 147 358 Average Temperature 115 | . 52 132 Received Heat Transfer 1056 | . 201 855 Effects 10 | . . 10 Shutdowns 1 | . . 1 Energy Bleed 3 | . . 3 Interference 6 | . . 6 Siege Activations . | . . . Robots Corrupted . | . . . Combat Hostiles . | . . . Parts Fried 1 | . . 1 Impact Corruptions . | . . . Robots Melted . | . . . Combat Hostiles . | . . . Parts Melted 3 | . . 3 Heat Transferred 2220 | . 296 1924 Parts Sabotaged . | . . . Parts Stolen . | . . . Parts Stripped . | . . . Power Chain Reactions . | . . . Missiles Intercepted . | . . . Alert | -11 -10 -9 ------- Run | Scr Mat Mat Peak Influence 507 | . 190 507 Initial 47 | . . 47 Average 171 | . 48 290 Maximum Alert Level 2 | . . 2 Low Security (%) 62 | . 100 25 Level 1 30 | . . 60 Level 2 7 | . . 14 Level 3 . | . . . Level 4 . | . . . Level 5 . | . . . High Security . | . . . Max Security . | . . . Squads Dispatched 6 | . 3 3 Investigation 3 | . 2 1 Extermination . | . . . Reinforcement 2 | . 1 1 Assault 1 | . . 1 Garrison . | . . . Intercept . | . . . Construction Impeded . | . . . Haulers Reinforced . | . . . Stealth | -11 -10 -9 --------- Run | Scr Mat Mat Distress Signals 6 | . 2 4 Communications Jammed . | . . . Distress Signals . | . . . Times Spotted 74 | . 21 53 Peak Tracking Total 10 | . 4 10 Tactical Retreats 1 | . . 1 Traps | -11 -10 -9 ------- Run | Scr Mat Mat Traps Triggered 5 | . 2 3 Indirectly . | . . . Trap Hack Attempts . | . . . Triggered . | . . . Disarmed . | . . . Reprogrammed . | . . . Reused . | . . . Traps Extracted . | . . . Installed . | . . . Triggered . | . . . Machines | -11 -10 -9 ---------- Run | Scr Mat Mat Machines Disabled 11 | . 5 6 Max in Single Turn 1 | . 1 1 Machines Sabotaged . | . . . Garrisons Compromised . | . . . Overloaded Fab Kills . | . . . Fab Network Shutdowns . | . . . Hacking | -11 -10 -9 --------- Run | Scr Mat Mat Machines Accessed 14 | . 7 7 Terminals 14 | . 7 7 Fabricators . | . . . Repair Stations . | . . . Recycling Units . | . . . Scanalyzers . | . . . Garrison Access . | . . . Total Hacks 36 | . 15 21 Successful 18 | . 6 12 Failed 17 | . 8 9 Catastrophic 4 | . 3 1 Database Lockouts 1 | . 1 . Manual 30 | . 11 19 Terminals 36 | . 15 21 Fabricators . | . . . Repair Stations . | . . . Recycling Units . | . . . Scanalyzers . | . . . Garrison Access . | . . . Terminal Hacks 10 | . 6 4 Robot Analysis 2 | . 1 1 Prototype ID Bank 4 | . 2 2 Emergency Access Points 1 | . 1 . Unreport Threat 3 | . 2 1 Fabricator Hacks . | . . . Repair Station Hacks . | . . . Recycling Unit Hacks . | . . . Scanalyzer . | . . . Garrison Access Hacks . | . . . Unauthorized Hacks 8 | . . 8 Terminals 8 | . . 8 Assimilate 3 | . . 3 Botnet 4 | . . 4 Operators 1 | . . 1 Fabricators . | . . . Repair Stations . | . . . Recycling Units . | . . . Scanalyzers . | . . . Garrison Access . | . . . Data Cores Recovered . | . . . Used . | . . . Hacking Detections 12 | . 6 6 Full Trace Events 1 | . 1 . Feedback Events . | . . . Feedback Blocked . | . . . Robot Schematics Acquired . | . . . Robots Built . | . . . Matter . | . . . Time . | . . . Total Robot Build Rating . | . . . Part Schematics Acquired . | . . . Parts Built . | . . . Matter . | . . . Time . | . . . Total Part Build Rating . | . . . Parts Repaired . | . . . Time . | . . . Parts Recycled . | . . . Recycled Matter . | . . . Retrieved Matter . | . . . Retrieved Components . | . . . Parts Scanalyzed . | . . . Part Schematics Acquired . | . . . Parts Damaged . | . . . Bothacking | -11 -10 -9 ------------ Run | Scr Mat Mat Used RIF Installer . | . . . Robots Hacked . | . . . Non-combat . | . . . Combat . | . . . Robot Hacks Applied . | . . . Relay Couplers Released . | . . . Robots Rewired . | . . . Allies Hacked . | . . . Hacks Repelled . | . . . Allies | -11 -10 -9 -------- Run | Scr Mat Mat Total Allies 1 | . . 1 Largest Group 1 | . . 1 Highest-Rated Group 10 | . . 10 Highest-Rated Ally 10 | . . 10 Total Orders . | . . . Ally Attacks . | . . . Total Damage . | . . . Kills . | . . . Allies Corrupted . | . . . Allies Melted . | . . . Intel | -11 -10 -9 ------- Run | Scr Mat Mat Robot Analysis Total 2 | . 1 1 Derelict Logs Recovered . | . . . Drone Launches . | . . . Drone Recoveries . | . . . Exploration | -11 -10 -9 ------------- Run | Scr Mat Mat Turns Passed 3232 | . 1589 1643 Spaces Moved 2015 | 1 833 1181 Core 3 | . 3 . Treads 759 | . 759 . Legs 46 | 1 45 . Wheels 1207 | . 26 1181 Hover . | . . . Flight . | . . . Fastest Speed 90 | 120 100 90 Average Speed 127 | 120 166 99 Slowest Speed 750 | 120 750 100 Overloaded Moves . | . . . Propulsion Burnouts . | . . . Robots Hopped . | . . . Cave-ins Triggered . | . . . Exploration Rate (%) 59 | 2 97 80 Regions Visited 2 Branch Regions . Pre-discovered Areas . | . . . Known Exits Taken . | . . . Unknown Exits Taken 2 | 1 1 . Scrap Searched . | . . . Spaces Dug . | . . . Terrain Destroyed 50 | . 29 21 Melee . | . . . Projectile . | . . . AOE 50 | . 29 21 Terrain Rammed . | . . . Walls Destroyed . | . . . Machines Disabled . | . . . Actions | -11 -10 -9 --------- Run | Scr Mat Mat Total 2398 | . 957 1441 Wait 69 | . 26 43 Move 2013 | . 832 1181 Hop . | . . . Pick Up 43 | . 18 25 Fast Attach 17 | . 11 6 Attach 5 | . 1 4 Detach 3 | . 1 2 Swap 25 | . 7 18 Drop 54 | . 18 36 Fire 169 | . 43 126 Melee . | . . . Ram . | . . . Kick . | . . . Crush . | . . . Escape Stasis . | . . . Rewire . | . . . Trap . | . . . Miscellaneous . | . . . Route ------- -11/Scrapyard -10/Materials (discovered 5 exits: *Mat x3 / [*Min x2]) -9/Materials (discovered 3 exits: [*Mat x2] / [*Min]) History --------- Turn | Location | Event 1 | -11/Scrapyard | Discovered new exit (range 0) 1 | -11/Scrapyard | Entered Materials 201 | -10/Materials | Discovered new exit (range 16) 208 | -10/Materials | Central database locked down 304 | -10/Materials | Build established: Mutant 463 | -10/Materials | Discovered new exit (range 5) 790 | -10/Materials | Discovered new exit (range 9) 1091 | -10/Materials | Discovered new exit (range 5) 1476 | -10/Materials | Discovered new exit (range 3) 1590 | -10/Materials | Entered another Materials area 1590 | -9/Materials | Evolved 2 slots: Propulsion x1, Utility x1 2041 | -9/Materials | Core integrity fell below 50% 2054 | -9/Materials | Destroyed 8 combat bots 2099 | -9/Materials | Lost 3 parts (1p1n1w) 2150 | -9/Materials | Discovered new exit (range 14) 2391 | -9/Materials | Discovered new exit (range 16) 2708 | -9/Materials | Core integrity fell below 20% 2993 | -9/Materials | Discovered new exit (range 14) 3190 | -9/Materials | First assault squad dispatched 3233 | -9/Materials | Destroyed by G-47 Trooper with Particle Gun Last Messages --------------- 03120_ A-02 Transporter suffers critical hit. 03120_ Destroyed Ion Engine. 03134_ A-02 Transporter suffers critical hit. 03134_ Destroyed Lgt. Treads. 03140_ A-02 Transporter suffers critical hit. 03140_ Destroyed Lgt. Treads. 03140_ A-02 Transporter destroyed. 03160_ W-16 Scout sends out distress signal. 03162_ K-01 Serf cleans the Fusion Modulator. 03187_ Y-45 Defender destroyed. 03190_ ALERT: Significant disruption in Zone 2L, assault force dispatched. 03194_ Acquired 36 matter. 03205_ K-01 Serf collects debris. 03221_ Dropped Lrg. Storage Unit. 03233_ C-30 ARC bursts open, deploying its payload. 03233_ G-47 Trooper unfolds itself. 03233_ L-31 Rogue unfolds itself. 03233_ G-34 Mercenary unfolds itself. 03233_ B-36 Bruiser unfolds itself. 03233_ M-13 Machinist unfolds itself. Map ----- +----------------------------------------------------+ | ????????????????????????????????????# ######+### | | ????????????????????????????????????# + !!% | | ??????????????????????##########????# #### != | | ??????????????????????# #????# #??# ! ! | | ??????????????????????# """ ###### #??# | | ??????????????????????# """ # #??# """ " | | ???????????????????"" # """ + #??# """ " | | ???????????????????"""# # #??# """ " | | ??????????????????? ""# """ ! ## ## #??# | | ????????????????????""# """ ## ## #??#####+# | | ????????????????????" # """ ## ## ####### | | ???????????????????? # ## ## | | ???????????????????? ###########/## | | ???????????# ???????#"#???# # """ ! [ | | ???????????# ??###?# #???# """ # """ | | ???????##### ## # ##### "Y" # """ | | ?????? + # | | ?????? ##### / | | ?????? #???# """# | | ?????? """ = ???# """# | | ??????? ? ??""" " [%# ??# """## !! !!! | | ?????? """ " #?# ## !! ^! | | ?????? ######### ## !! | | ?????? = #?# !!#### | | ?????? bl* ## !### #### | | ?????? ### g%g @ !## """# | | ??????? ????#m###### !## "# | | ???????? ?????? ?????# !## !"# ^ " | | ??????????????? ??????#######!!### < ""#^ " | | ??????????????# ????????????####?# |"# " | | ??????????????# ??????????????????# "# " | | ????????????? ##???????????????????# """# " | | ????????????? ??????????############# #### | | ????????????? ??????????# [[*! =# | | ????????????+ ?????????## !% *%+ | | ????????????# ?????????# """ !=#% | | ????????????# ?????????## """ " # ^! | | ????????????# ??????????# """ """# !^! T | | ????????????# #?????????# S"# !! ^ | | ????????????# #######???#! # !! | | ????????????# #???############# ! | | ????????????# #?????????#######! ^ ! | | ????????????# """ #?????????# """ ! | | ????????????# """ #?????????# """ | | ? ###### %"" ########### """ % | | ??? =*% * ## # | | ??????????###%= + # | | ????????????#%######## # ####+###### | | ????????????#=#??????# # # ####### | | ????????????#[#??????# + # "" #?????? | +----------------------------------------------------+ Best States ------------- Heat Dissipation 28 Energy Generation 12 Energy Capacity 265 Matter Stores 300 Matter Capacity 300 Sight Range 16 Terrain Scan Density 10 Armor Coverage 150 Evasion (%) 42 Recoil Reduction 2 Item Schematics ----------------- None Robot Schematics ------------------ None Fabricated ------------ Nothing Alien Tech Used ----------------- None Achievements -------------- None Challenges ------------ None Game ------ Seed SupersonicGuidanceStorage Manual? 0 Play Time 00:32:04 Cumulative 97.9 hours Start 2021.05.12 @ 12:29:58 End 2021.05.12 @ 15:20:24 Sessions 2 Manual Loads 0 Difficulty Rogue Special Mode None Game No. 60 Rogue 35 Adventurer 25 Explorer 0 Win Type - Total 0 Types 0/0/0/0/0/0/0/0/0 Lore% 38 Gallery% 38 Achievement% 33 Wizard Run 0 Options --------- ASCII 0 Keyboard 1 Movement Vi Keybinds 1 Fullscreen 2 Font 18/SmallcapsGlow Map View 76x50 Tactical HUD 1 Map Filters NONE Filters NONE Steam 1 RUN: e7bffeb8-304a-407f-87d7-1acb5c291f42